bitfinex/quotes_BTCUSD_20240715
["timestamp","ask_amount","ask_price","bid_price","bid_amount"]
[1721042323239,3.07652746,62547.0,62546.0,1e-06]
[1721042323407,3.23706496,62547.0,62546.0,1e-06]
[1721042323615,3.26006496,62547.0,62546.0,1e-06]
[1721042324228,3.26006496,62547.0,62530.0,0.004]
[1721042324229,3.26006496,62547.0,62524.0,0.02045249]
[1721042324230,0.2597495,62525.0,62524.0,0.02045249]
[1721042324433,1.09700342,62525.0,62524.0,0.02045249]
[1721042324593,1.99444544,62525.0,62524.0,0.02045249]
[1721042324797,2.72821884,62525.0,62524.0,0.02045249]
[1721042325017,2.72821884,62525.0,62522.0,4.9e-07]
[1721042325018,0.50432182,62523.0,62522.0,4.9e-07]
[1721042325235,0.50432182,62523.0,62511.0,0.002]
[1721042325236,2.12394382,62521.0,62520.0,4.9e-07]
[1721042325458,3.53144691,62521.0,62520.0,4.9e-07]
[1721042325657,3.7330917,62521.0,62520.0,4.9e-07]
[1721042326282,4.02244251,62521.0,62520.0,4.9e-07]
[1721042326487,4.02244251,62521.0,62502.0,0.009174]
[1721042326488,0.67272182,62509.0,62502.0,0.009174]
[1721042326700,1.12992051,62509.0,62502.0,0.009174]
[1721042326909,2.27027951,62509.0,62502.0,0.009174]
[1721042327109,2.92183251,62509.0,62502.0,0.009174]
[1721042327368,2.87088607,62509.0,62502.0,0.009174]
[1721042327585,3.19083907,62509.0,62502.0,0.009174]
[1721042327953,2.09038607,62509.0,62502.0,0.009174]
[1721042328129,2.54236869,62509.0,62502.0,0.009174]
[1721042328477,2.12266619,62509.0,62502.0,0.009174]
[1721042328682,1.96266619,62509.0,62502.0,0.009174]
[1721042328880,1.94861795,62509.0,62504.0,0.0764]
[1721042329086,1.96261795,62509.0,62508.0,0.0177314]
[1721042329260,1.97661795,62509.0,62508.0,0.0177314]
[1721042329463,1.12869995,62509.0,62508.0,0.0177314]
[1721042329666,1.64269995,62509.0,62508.0,0.009174]
[1721042329868,1.62057223,62509.0,62508.0,0.009174]
[1721042330026,1.64270022,62509.0,62508.0,0.009174]
[1721042330228,1.12870022,62509.0,62508.0,0.009174]
[1721042330429,1.12870022,62509.0,62508.0,0.0239714]
[1721042330430,1.05670022,62509.0,62508.0,0.0239714]
[1721042330634,1.55670022,62509.0,62508.0,0.0239714]
[1721042331054,1.55669422,62509.0,62508.0,0.0239714]
[1721042331254,1.55669422,62509.0,62508.0,0.009174]
[1721042331496,1.55640694,62509.0,62508.0,0.009174]
[1721042331926,1.90835994,62509.0,62508.0,0.009174]
[1721042332129,2.22210944,62509.0,62508.0,0.009174]
[1721042332332,2.65606244,62509.0,62508.0,0.009174]
[1721042332544,2.66506244,62509.0,62508.0,0.009174]
[1721042332751,1.70241423,62509.0,62508.0,0.009174]
[1721042332956,1.68841423,62509.0,62508.0,0.009174]
[1721042333234,2.32211673,62509.0,62508.0,0.009174]
[1721042333481,2.13611673,62509.0,62508.0,0.009174]
[1721042333685,2.12211673,62509.0,62508.0,0.009174]
[1721042334098,2.32211673,62509.0,62508.0,0.009174]
[1721042334301,2.00836723,62509.0,62508.0,0.009174]
[1721042334926,2.30811673,62509.0,62508.0,0.009174]
[1721042335128,2.32211673,62509.0,62508.0,0.009174]
[1721042335510,2.33611673,62509.0,62508.0,0.009174]
[1721042335765,2.39210245,62509.0,62508.0,0.009174]
[1721042335965,2.3861428,62509.0,62508.0,0.009174]
[1721042336341,2.4001428,62509.0,62508.0,0.009174]
[1721042336556,2.3861428,62509.0,62508.0,0.009174]
[1721042336957,2.0403933,62509.0,62508.0,0.009174]
[1721042337467,1.7064403,62509.0,62508.0,0.009174]
[1721042337585,1.2064403,62509.0,62508.0,0.071574]
[1721042337790,0.26227326,62509.0,62508.0,0.14996128]
[1721042337992,0.064115,62509.0,62508.0,0.20411951]
[1721042338216,0.70424904,62514.0,62513.0,0.00028728]
[1721042338436,0.20425604,62511.0,62510.0,0.00053778]
[1721042338636,0.52420704,62510.0,62509.0,0.04614671]
[1721042338845,0.68632495,62510.0,62509.0,0.04325817]
[1721042339078,1.00627295,62510.0,62509.0,0.04325817]
[1721042339484,0.68632495,62510.0,62509.0,0.04325817]
[1721042339816,0.68632495,62510.0,62508.0,0.1499245]
[1721042339817,0.20426104,62509.0,62508.0,0.15021178]
[1721042340014,0.68633195,62509.0,62508.0,0.15021178]
[1721042340361,0.68633195,62509.0,62508.0,0.1499245]
[1721042340932,0.028,62510.0,62509.0,0.0002505]
[1721042341165,0.028,62510.0,62509.0,0.04197802]
[1721042341723,0.02771272,62510.0,62509.0,0.03877889]
[1721042341924,0.20425404,62512.0,62509.0,0.03877889]
[1721042342135,0.064099,62513.0,62512.0,0.07803778]
[1721042342340,0.319912,62518.0,62512.0,0.07803778]
[1721042342341,0.04428504,62522.0,62520.0,0.00053778]
[1721042342553,0.1,62533.0,62520.0,0.00053778]
[1721042342554,0.21160799,62521.0,62520.0,0.00053778]
[1721042342767,0.32206391,62521.0,62520.0,0.00053778]
[1721042342968,0.32206391,62521.0,62520.0,0.10099156]
[1721042342969,0.064092,62521.0,62520.0,0.10099156]
[1721042343180,0.319851,62529.0,62526.0,0.00028728]
[1721042343181,0.319857,62528.0,62526.0,0.00028728]
[1721042343401,0.04986306,62533.0,62530.0,0.00053778]
[1721042343402,0.04428504,62531.0,62530.0,0.00053778]
[1721042343612,0.04986306,62533.0,62530.0,0.00053778]
[1721042343613,0.71198097,62533.0,62532.0,0.00053778]
[1721042343810,0.20640295,62533.0,62532.0,0.03759295]
[1721042344041,0.04428504,62533.0,62532.0,0.03759295]
[1721042344169,0.10836504,62533.0,62532.0,0.03759295]
[1721042344382,0.43039795,62533.0,62532.0,0.03759295]
[1721042344795,0.52404604,62531.0,62530.0,0.1380505]
[1721042345004,0.83590704,62531.0,62530.0,0.1378]
[1721042345201,0.04428504,62526.0,62525.0,0.00288854]
[1721042345401,0.04428504,62526.0,62518.0,0.229]
[1721042345402,0.04428504,62526.0,62516.0,0.1447505]
[1721042345403,0.52415304,62517.0,62516.0,0.1447505]
[1721042345680,0.52415304,62517.0,62516.0,0.15900378]
[1721042345681,1.32609495,62517.0,62516.0,0.15900378]
[1721042345831,1.34809465,62517.0,62516.0,0.0821]
[1721042346028,1.00618295,62517.0,62516.0,0.0821]
[1721042346256,0.68627095,62517.0,62516.0,0.09065864]
[1721042347059,1.02824449,62517.0,62516.0,0.09065864]
[1721042347421,1.04224423,62517.0,62516.0,0.09065864]
[1721042347637,1.05624423,62517.0,62516.0,0.09065864]
[1721042348951,1.03418295,62517.0,62516.0,0.09065864]
[1721042349357,1.05618373,62517.0,62516.0,0.09065864]
[1721042350678,0.73627173,62517.0,62516.0,0.09090914]
[1721042351077,0.73627173,62517.0,62516.0,0.09119642]
[1721042351360,0.73627173,62517.0,62516.0,0.09090914]
[1721042351678,0.73627173,62517.0,62515.0,0.00028728]
[1721042351679,0.159971,62511.0,62510.0,0.06293778]
[1721042352124,0.159971,62511.0,62510.0,0.0626505]
[1721042352523,0.04428504,62509.0,62508.0,0.0094245]
[1721042352743,0.04428504,62509.0,62508.0,0.04753568]
[1721042352744,0.38842423,62509.0,62508.0,0.04753568]
[1721042352984,0.70837723,62509.0,62508.0,0.04753568]
[1721042353735,0.68633195,62509.0,62508.0,0.04753568]
[1721042353940,0.71344794,62509.0,62508.0,0.04753568]
[1721042354106,0.69133195,62509.0,62508.0,0.04753568]
[1721042354308,0.71344792,62509.0,62508.0,0.04753568]
[1721042354873,0.71344792,62509.0,62508.0,0.0094245]
[1721042355071,1.03340092,62509.0,62508.0,0.0094245]
[1721042355475,1.03840092,62509.0,62508.0,0.0094245]
[1721042355907,0.67416288,62509.0,62508.0,0.00971178]
[1721042356104,0.67416288,62509.0,62508.0,0.04782296]
[1721042356319,0.03211597,62509.0,62508.0,0.04782296]
[1721042356525,0.03211597,62509.0,62508.0,0.06353792]
[1721042356718,0.01,62509.0,62508.0,0.04782296]
[1721042357227,0.55628704,62509.0,62508.0,0.04782296]
[1721042357436,0.87624004,62509.0,62508.0,0.04782296]
[1721042357636,1.03835795,62509.0,62508.0,0.00971178]
[1721042358149,0.71840495,62509.0,62508.0,0.00971178]
[1721042358376,0.032073,62509.0,62508.0,0.02542674]
[1721042358574,0.01,62509.0,62508.0,0.06571818]
[1721042359938,0.005,62509.0,62508.0,0.06571818]
[1721042361947,0.005,62509.0,62508.0,0.05000322]
[1721042362390,0.16711791,62509.0,62508.0,0.05000322]
[1721042362541,0.18916888,62509.0,62508.0,0.05000322]
[1721042363172,0.18917583,62509.0,62508.0,0.05000322]
[1721042364998,0.18917583,62509.0,62508.0,0.00971178]
[1721042365803,0.23346087,62509.0,62508.0,0.00971178]
[1721042366389,0.23359141,62509.0,62508.0,0.00971178]
[1721042366594,0.39356741,62509.0,62508.0,0.00971178]
[1721042366801,0.3934019,62509.0,62508.0,0.00971178]
[1721042366951,0.23360089,62509.0,62508.0,0.00971178]
[1721042367170,0.24721908,62509.0,62508.0,0.00971178]
[1721042368151,0.39357689,62509.0,62508.0,0.009174]
[1721042368377,1.04693441,62509.0,62508.0,0.009174]
[1721042368727,1.08669917,62509.0,62508.0,0.009174]
[1721042369435,1.06410917,62509.0,62508.0,0.009174]
[1721042369634,1.086063,62509.0,62508.0,0.009174]
[1721042370876,1.147563,62509.0,62508.0,0.009174]
[1721042371078,1.10327796,62509.0,62508.0,0.009174]
[1721042371268,1.17260002,62509.0,62508.0,0.009174]
[1721042371729,1.14727572,62509.0,62508.0,0.009174]
[1721042371913,1.62722872,62509.0,62508.0,0.009174]
[1721042372118,1.65226543,62509.0,62508.0,0.009174]
[1721042372319,1.59226543,62509.0,62508.0,0.009174]
[1721042372525,1.5924443,62509.0,62508.0,0.009174]
[1721042373069,1.58773158,62509.0,62508.0,0.009174]
[1721042373599,1.66173158,62509.0,62508.0,0.009174]
[1721042373795,1.60173158,62509.0,62508.0,0.009174]
[1721042374176,1.65277589,62509.0,62508.0,0.009174]
[1721042374407,1.90842521,62509.0,62508.0,0.009174]
[1721042374656,2.22837821,62509.0,62508.0,0.009174]
[1721042374855,2.16837821,62509.0,62508.0,0.009174]
[1721042374978,2.22837821,62509.0,62508.0,0.009174]
[1721042375189,2.20037821,62509.0,62508.0,0.009174]
[1721042375733,2.2300891,62509.0,62508.0,0.009174]
[1721042375956,2.0703396,62509.0,62508.0,0.009174]
[1721042376129,1.7503866,62509.0,62508.0,0.009174]
[1721042376713,1.7223866,62509.0,62508.0,0.009174]
[1721042377637,1.7363866,62509.0,62508.0,0.009174]
[1721042378439,1.7503866,62509.0,62508.0,0.009174]
[1721042378869,1.75054711,62509.0,62508.0,0.009174]
[1721042379280,1.62267466,62509.0,62508.0,0.009174]
[1721042379457,1.75054919,62509.0,62508.0,0.009174]
[1721042380285,1.73654919,62509.0,62508.0,0.009174]
[1721042380642,1.40188264,62509.0,62508.0,0.009174]
[1721042380842,1.73583564,62509.0,62508.0,0.009174]
[1721042381691,1.73554836,62509.0,62508.0,0.009174]
[1721042381915,1.72109552,62509.0,62508.0,0.009174]
[1721042382158,1.73499775,62509.0,62508.0,0.009174]
[1721042382714,1.78594069,62509.0,62508.0,0.009174]
[1721042383320,1.73499775,62509.0,62508.0,0.009174]
[1721042385338,1.78547605,62509.0,62508.0,0.009174]
[1721042385539,2.10542905,62509.0,62508.0,0.009174]
[1721042385975,2.30592905,62509.0,62508.0,0.009174]
[1721042386737,2.37702699,62509.0,62508.0,0.009174]
[1721042386909,2.99672949,62509.0,62508.0,0.009174]
[1721042387138,3.0204288,62509.0,62508.0,0.009174]
[1721042387312,2.99671886,62509.0,62508.0,0.009174]
[1721042387541,2.92563155,62509.0,62508.0,0.009174]
[1721042387690,2.89763155,62509.0,62508.0,0.009174]
[1721042388098,3.02039887,62509.0,62508.0,0.009174]
[1721042388299,2.95583937,62509.0,62508.0,0.009174]
[1721042388498,2.92614308,62509.0,62508.0,0.009174]
[1721042388860,2.85018372,62509.0,62508.0,0.009174]
[1721042389068,2.92610404,62509.0,62508.0,0.009174]
[1721042390162,3.02086655,62509.0,62508.0,0.009174]
[1721042390379,3.02610404,62509.0,62508.0,0.009174]
[1721042390784,2.82610404,62509.0,62508.0,0.009174]
[1721042391003,2.34615104,62509.0,62508.0,0.009174]
[1721042391206,2.62465769,62509.0,62508.0,0.009174]
[1721042391409,2.52465769,62509.0,62508.0,0.009174]
[1721042391582,2.70670186,62509.0,62508.0,0.009174]
[1721042391788,2.70641458,62509.0,62508.0,0.009174]
[1721042391935,3.02636758,62509.0,62508.0,0.009174]
[1721042392319,2.70641458,62509.0,62508.0,0.009174]
[1721042392518,2.23049508,62509.0,62508.0,0.009174]
[1721042392723,2.32531259,62509.0,62508.0,0.009174]
[1721042393037,2.4016094,62509.0,62508.0,0.009174]
[1721042393441,2.3016094,62509.0,62508.0,0.009174]
[1721042393705,2.4016094,62509.0,62508.0,0.009174]
[1721042394277,1.7416094,62509.0,62508.0,0.009174]
[1721042394483,1.46708908,62509.0,62508.0,0.009174]
[1721042394689,1.46705114,62509.0,62508.0,0.009174]
[1721042395470,0.96705114,62509.0,62508.0,0.009174]
[1721042395700,1.78700414,62509.0,62508.0,0.009174]
[1721042395937,1.77300414,62509.0,62508.0,0.009174]
[1721042396328,1.84700414,62509.0,62508.0,0.009174]
[1721042396525,1.83300414,62509.0,62508.0,0.009174]
[1721042396755,1.89860414,62509.0,62508.0,0.009174]
[1721042396869,2.23255714,62509.0,62508.0,0.009174]
[1721042397074,2.30367547,62509.0,62508.0,0.009174]
[1721042397278,2.28967547,62509.0,62508.0,0.009174]
[1721042397504,2.20455714,62509.0,62508.0,0.009174]
[1721042397705,2.0911301,62509.0,62508.0,0.009174]
[1721042397914,2.23225375,62509.0,62508.0,0.009174]
[1721042398133,2.17225375,62509.0,62508.0,0.009174]
[1721042398337,2.10665375,62509.0,62508.0,0.009174]
[1721042398780,2.10665375,62509.0,62508.0,0.007774]
[1721042398974,2.16665375,62509.0,62508.0,0.007774]
[1721042399200,2.15265375,62509.0,62508.0,0.007774]
[1721042399688,2.16665375,62509.0,62508.0,0.007774]
[1721042400453,2.09265375,62509.0,62508.0,0.007774]
[1721042400656,2.0275717,62509.0,62508.0,0.007774]
[1721042400800,2.23805502,62509.0,62508.0,0.007774]
[1721042401191,2.0395301,62509.0,62508.0,0.007774]
[1721042401390,2.23822547,62509.0,62508.0,0.007774]
[1721042401588,2.16707017,62509.0,62508.0,0.007774]
[1721042401839,2.23794227,62509.0,62508.0,0.007774]
[1721042402041,2.17794227,62509.0,62508.0,0.007774]
[1721042402246,2.10678289,62509.0,62508.0,0.007774]
[1721042402395,2.17794227,62509.0,62508.0,0.007774]
[1721042402809,2.0413319,62509.0,62508.0,0.007774]
[1721042402982,2.17809357,62509.0,62508.0,0.007774]
[1721042403181,1.85814057,62509.0,62508.0,0.007774]
[1721042403440,1.78696975,62509.0,62508.0,0.007774]
[1721042404012,1.14663579,62509.0,62508.0,0.007774]
[1721042404185,0.96658879,62509.0,62508.0,0.083174]
[1721042404393,0.96658879,62509.0,62508.0,0.09810512]
[1721042405384,0.64663579,62509.0,62508.0,0.0986429]
[1721042405646,0.96658879,62509.0,62508.0,0.0986429]
[1721042405986,0.96658879,62509.0,62508.0,0.08371178]
[1721042406628,0.96642225,62509.0,62508.0,0.08371178]
[1721042406791,0.95242225,62509.0,62508.0,0.0834245]
[1721042406998,0.95242225,62509.0,62508.0,0.08691112]
[1721042406999,0.1159466,62509.0,62508.0,0.08691112]
[1721042407195,0.09090989,62509.0,62508.0,0.33241373]
[1721042407429,0.09090989,62509.0,62508.0,0.34472984]
[1721042407625,0.03703421,62509.0,62508.0,0.4228448]
[1721042407822,0.05103421,62509.0,62508.0,0.4228448]
[1721042408023,0.05103421,62509.0,62508.0,0.40712984]
[1721042408225,0.05103421,62509.0,62508.0,0.4039305]
[1721042408666,0.06503421,62509.0,62508.0,0.4039305]
[1721042408878,0.09531925,62509.0,62508.0,0.26584322]
[1721042409081,0.29511662,62509.0,62508.0,0.02034061]
[1721042409309,0.77718753,62509.0,62508.0,0.02009011]
[1721042409485,0.86618753,62509.0,62508.0,0.02034061]
[1721042409687,0.87708625,62509.0,62508.0,0.0080245]
[1721042409889,1.20770044,62509.0,62508.0,0.007774]
[1721042410112,1.21470044,62509.0,62508.0,0.007774]
[1721042410271,0.89474744,62509.0,62508.0,0.007774]
[1721042410653,0.89547851,62509.0,62508.0,0.007774]
[1721042410848,0.41554951,62509.0,62508.0,0.007774]
[1721042411484,0.41454951,62509.0,62508.0,0.007774]
[1721042411684,0.56823823,62509.0,62508.0,0.007774]
[1721042411885,0.58223823,62509.0,62508.0,0.007774]
[1721042412086,0.58203823,62509.0,62508.0,0.007774]
[1721042412263,0.42206223,62509.0,62508.0,0.00806128]
[1721042412695,0.43506223,62509.0,62508.0,0.00806128]
[1721042412895,0.22865196,62509.0,62508.0,0.31241178]
[1721042413109,0.10361739,62509.0,62508.0,0.35207324]
[1721042413309,0.0495464,62509.0,62508.0,0.35207324]
[1721042413512,0.06417906,62509.0,62508.0,0.35207324]
[1721042413839,0.06417906,62509.0,62508.0,0.3677882]
[1721042414019,0.0495464,62509.0,62508.0,0.35207324]
[1721042414218,0.0495464,62509.0,62508.0,0.4301882]
[1721042415013,0.0495464,62509.0,62508.0,0.43307674]
[1721042415217,0.0355464,62509.0,62508.0,0.43307674]
[1721042415419,0.0225464,62509.0,62508.0,0.5901672]
[1721042415648,0.0295464,62509.0,62508.0,0.5901672]
[1721042415981,0.02741501,62509.0,62508.0,0.5901672]
[1721042416190,0.02738332,62509.0,62508.0,0.4301882]
[1721042416403,0.03438332,62509.0,62508.0,0.4301882]
[1721042416606,0.03438332,62509.0,62508.0,0.41736178]
[1721042417009,0.03438332,62509.0,62508.0,0.41447324]
[1721042417263,0.03438332,62509.0,62508.0,0.4301882]
[1721042417410,0.03438332,62509.0,62508.0,0.5901672]
[1721042417626,0.03438332,62509.0,62508.0,1.3987852]
[1721042417627,0.01234272,62509.0,62508.0,1.3987852]
[1721042417856,0.00434272,62509.0,62508.0,1.7187442]
[1721042418010,0.1583259,62531.0,62508.0,1.7187442]
[1721042418011,0.00017499,62530.0,62522.0,0.14253778]
[1721042418212,0.0710845,62523.0,62522.0,0.37153778]
[1721042418441,0.02203054,62523.0,62522.0,0.49403202]
[1721042418780,0.064085,62527.0,62526.0,0.00053778]
[1721042418934,0.54428504,62531.0,62530.0,0.00053778]
[1721042419136,0.07864697,62531.0,62530.0,0.0002505]
[1721042419344,0.07864592,62531.0,62530.0,0.0002505]
[1721042419536,0.14272692,62531.0,62530.0,0.00344861]
[1721042419737,0.14272692,62531.0,62530.0,0.00053778]
[1721042420101,0.14272692,62531.0,62530.0,0.0002505]
[1721042420292,0.64272692,62531.0,62530.0,0.0002505]
[1721042420696,0.14272692,62531.0,62530.0,0.00053778]
[1721042420834,0.15572692,62531.0,62530.0,0.00053778]
[1721042421258,0.14325047,62531.0,62530.0,0.00053778]
[1721042421483,0.15620246,62531.0,62530.0,0.00053778]
[1721042421836,0.16820246,62531.0,62530.0,0.00053778]
[1721042422123,0.16820246,62531.0,62530.0,0.0002505]
[1721042422347,0.13336604,62531.0,62530.0,0.0002505]
[1721042422546,0.33115818,62531.0,62529.0,0.0002505]
[1721042422779,0.69981838,62530.0,62529.0,0.0002505]
[1721042422986,0.69981838,62530.0,62520.0,0.00019254]
[1721042422987,0.84753104,62521.0,62520.0,0.00019254]
[1721042423218,1.82616522,62521.0,62520.0,0.00019254]
[1721042423422,2.18566184,62521.0,62520.0,0.00019254]
[1721042423629,2.28566184,62521.0,62520.0,0.00019254]
[1721042424044,2.20460946,62521.0,62520.0,0.00019254]
[1721042424258,1.82471746,62521.0,62520.0,0.00019254]
[1721042424488,1.42322546,62521.0,62520.0,0.00019254]
[1721042424958,1.42405546,62521.0,62520.0,0.00019254]
[1721042425099,1.74394746,62521.0,62520.0,0.00019254]
[1721042425309,1.74345636,62521.0,62520.0,0.00019254]
[1721042425532,1.75745636,62521.0,62520.0,0.00019254]
[1721042425732,1.74345636,62521.0,62520.0,0.00019254]
[1721042426137,1.77145636,62521.0,62520.0,0.00019254]
[1721042426370,1.75745636,62521.0,62520.0,0.00019254]
[1721042426528,1.42356436,62521.0,62520.0,0.00019254]
[1721042426931,1.43756436,62521.0,62520.0,0.00019254]
[1721042427538,1.75745636,62521.0,62520.0,0.00019254]
[1721042428507,1.37673788,62521.0,62520.0,0.00019254]
[1721042428714,1.39022352,62521.0,62520.0,0.00019254]
[1721042429554,1.71011552,62521.0,62520.0,0.00019254]
[1721042429759,2.15430752,62521.0,62520.0,0.00019254]
[1721042430163,2.17934092,62521.0,62520.0,0.00019254]
[1721042430568,2.16534092,62521.0,62520.0,0.00019254]
[1721042430695,2.24504092,62521.0,62520.0,0.00019254]
[1721042430901,2.4944795,62521.0,62520.0,0.00019254]
[1721042431107,2.6143715,62521.0,62520.0,0.00019254]
[1721042431525,2.900121,62521.0,62520.0,0.00019254]
[1721042431729,2.9129396,62521.0,62520.0,0.00019254]
[1721042431956,2.9269396,62521.0,62520.0,0.00019254]
[1721042432333,2.8271901,62521.0,62520.0,0.00019254]
[1721042432538,2.6271901,62521.0,62520.0,0.00019254]
[1721042433633,2.3072981,62521.0,62520.0,0.00019254]
[1721042434865,2.30746844,62521.0,62520.0,0.00019254]
[1721042435318,2.30754635,62521.0,62520.0,0.00019254]
[1721042437459,3.12188269,62521.0,62520.0,0.00019254]
[1721042437664,3.48841153,62521.0,62520.0,0.00019254]
[1721042437827,3.37007985,62521.0,62520.0,0.00019254]
[1721042440156,3.37283485,62521.0,62520.0,0.00019254]
[1721042440572,3.51486653,62521.0,62520.0,0.00019254]
[1721042441120,3.24917685,62521.0,62520.0,0.00019254]
[1721042441270,3.51605581,62521.0,62520.0,0.00019254]
[1721042441690,3.36002546,62521.0,62520.0,0.00019254]
[1721042442934,3.37402546,62521.0,62520.0,0.00019254]
[1721042443155,3.83594781,62521.0,62520.0,5.4e-07]
[1721042443276,3.83590492,62521.0,62520.0,5.4e-07]
[1721042444378,3.83607285,62521.0,62520.0,5.4e-07]
[1721042444577,3.69408467,62521.0,62520.0,5.4e-07]
[1721042444798,3.63243452,62521.0,62520.0,5.4e-07]
[1721042445000,2.67419059,62521.0,62520.0,5.4e-07]
[1721042445176,3.37419059,62521.0,62520.0,5.4e-07]
[1721042447304,3.27113504,62521.0,62520.0,5.4e-07]
[1721042447501,3.37447179,62521.0,62520.0,5.4e-07]
[1721042448303,3.37171679,62521.0,62520.0,5.4e-07]
[1721042450638,3.31002681,62521.0,62520.0,5.4e-07]
[1721042450842,3.37165832,62521.0,62520.0,5.4e-07]
[1721042451065,3.69155032,62521.0,62520.0,5.4e-07]
[1721042453785,3.57965513,62521.0,62520.0,5.4e-07]
[1721042453990,3.6912181,62521.0,62520.0,5.4e-07]
[1721042456843,3.6912181,62521.0,62500.0,0.259174]
[1721042456844,0.44783454,62501.0,62500.0,0.259174]
[1721042457041,1.47604038,62501.0,62500.0,0.259174]
[1721042457246,1.87793462,62501.0,62500.0,0.26748844]
[1721042457450,1.87793462,62501.0,62500.0,0.259174]
[1721042457451,2.19792527,62501.0,62500.0,0.259174]
[1721042457651,2.83791327,62501.0,62500.0,0.259174]
[1721042458210,3.32660727,62501.0,62500.0,0.099174]
[1721042458411,3.34060727,62501.0,62500.0,0.099174]
[1721042458628,3.32660727,62501.0,62500.0,0.099174]
[1721042458837,3.48249114,62501.0,62500.0,0.099174]
[1721042459043,3.49637052,62501.0,62500.0,1e-06]
[1721042459255,3.32767052,62501.0,62500.0,1e-06]
[1721042459453,3.17190727,62501.0,62500.0,1e-06]
[1721042459875,3.18590727,62501.0,62500.0,1e-06]
[1721042460075,3.1906711,62501.0,62500.0,1e-06]
[1721042460286,3.0709276,62501.0,62500.0,1e-06]
[1721042460484,2.4281891,62501.0,62500.0,1e-06]
[1721042460839,2.6281891,62501.0,62500.0,1e-06]
[1721042460966,2.4281891,62501.0,62500.0,1e-06]
[1721042461166,2.2638891,62501.0,62500.0,1e-06]
[1721042461803,2.0041396,62501.0,62500.0,1e-06]
[1721042462002,2.0041396,62501.0,62500.0,0.0145311]
[1721042462126,1.5641396,62501.0,62500.0,1e-06]
[1721042462344,1.50449215,62501.0,62500.0,1e-06]
[1721042462752,0.81432685,62501.0,62500.0,1e-06]
[1721042462943,0.25943635,62501.0,62500.0,1e-06]
[1721042463131,0.25943635,62501.0,62500.0,0.01487216]
[1721042463132,0.22579152,62501.0,62500.0,0.01487216]
[1721042463359,0.22579152,62501.0,62500.0,0.01512266]
[1721042463360,0.21212212,62501.0,62500.0,0.01512266]
[1721042463579,0.05000421,62501.0,62500.0,0.15252266]
[1721042463780,0.05000421,62501.0,62500.0,0.15572231]
[1721042463931,0.05000421,62501.0,62500.0,0.15252266]
[1721042464363,0.03600421,62501.0,62500.0,0.16823762]
[1721042464592,0.03600421,62501.0,62500.0,0.15252266]
[1721042464935,0.05000421,62501.0,62500.0,0.15252266]
[1721042465270,0.05000421,62501.0,62500.0,0.16823762]
[1721042465474,0.03587999,62501.0,62500.0,0.16823762]
[1721042465707,0.02187999,62501.0,62500.0,0.15252266]
[1721042465933,0.027,62501.0,62500.0,0.16823762]
[1721042466172,0.03587999,62501.0,62500.0,0.16823762]
[1721042466373,0.02187999,62501.0,62500.0,0.16823762]
[1721042466571,0.00306353,62510.0,62509.0,0.0002505]
[1721042466722,0.2013664,62510.0,62509.0,0.0002505]
[1721042466931,0.3013664,62510.0,62509.0,0.0002505]
[1721042467231,0.19830287,62510.0,62509.0,0.0002505]
[1721042467435,0.03618496,62510.0,62509.0,0.39016546]
[1721042467658,0.03618496,62510.0,62509.0,0.5036387]
[1721042467659,0.02205846,62510.0,62509.0,0.5036387]
[1721042467862,0.04428504,62518.0,62516.0,0.0002505]
[1721042468109,0.19771233,62517.0,62516.0,0.0002505]
[1721042468461,0.24199737,62517.0,62516.0,0.0002505]
[1721042468668,0.2284091,62517.0,62516.0,0.0002505]
[1721042468869,0.34198062,62517.0,62516.0,0.0002505]
[1721042469073,0.34198317,62517.0,62516.0,0.0002505]
[1721042469430,0.35598317,62517.0,62516.0,0.0002505]
[1721042470044,0.36998317,62517.0,62516.0,0.0002505]
[1721042471110,0.52993917,62517.0,62516.0,0.0002505]
[1721042471550,0.53028898,62517.0,62516.0,0.0002505]
[1721042471754,0.49435895,62517.0,62516.0,0.0002505]
[1721042471994,0.53026536,62517.0,62516.0,0.0002505]
[1721042472959,0.04428504,62512.0,62511.0,0.0002505]
[1721042473289,0.04428504,62509.0,62508.0,0.0002505]
[1721042473492,0.5,62511.0,62510.0,0.0002505]
[1721042473717,0.52205029,62511.0,62510.0,0.1449505]
[1721042473929,0.56633533,62511.0,62510.0,0.0825505]
[1721042474099,0.72630633,62511.0,62510.0,0.09100436]
[1721042474240,0.72630633,62511.0,62510.0,0.0825505]
[1721042475015,0.72636865,62511.0,62510.0,0.0825505]
[1721042475299,0.90274571,62511.0,62510.0,0.09704555]
[1721042475507,0.91574571,62511.0,62510.0,0.09704555]
[1721042475655,0.87146044,62511.0,62510.0,0.09704555]
[1721042475867,0.69723052,62511.0,62510.0,0.09704555]
[1721042476089,0.68423052,62511.0,62510.0,0.09704555]
[1721042476247,0.71223052,62511.0,62510.0,0.09704555]
[1721042476446,0.69823052,62511.0,62510.0,0.09704555]
[1721042476903,0.19823052,62511.0,62510.0,0.09704555]
[1721042477107,0.03611261,62511.0,62510.0,0.09704555]
[1721042477650,0.03611261,62511.0,62510.0,0.17595969]
[1721042477758,0.014,62511.0,62510.0,0.23336051]
[1721042478189,0.00792,62517.0,62516.0,0.0002505]
[1721042478401,0.029964,62517.0,62516.0,0.0002505]
[1721042478731,0.02996434,62517.0,62516.0,0.0002505]
[1721042481118,0.00792,62517.0,62516.0,0.0002505]
[1721042481339,0.02192,62517.0,62516.0,0.0002505]
[1721042481735,0.02192,62517.0,62516.0,0.02317555]
[1721042481736,0.05797871,62517.0,62516.0,0.02317555]
[1721042482138,0.03592,62517.0,62516.0,0.17779051]
[1721042482486,0.03592,62517.0,62516.0,0.10207555]
[1721042482717,0.05798626,62517.0,62516.0,0.10207555]
[1721042482941,0.02998626,62517.0,62516.0,0.10207555]
[1721042483313,0.05598626,62517.0,62516.0,0.10207555]
[1721042484582,0.04298626,62517.0,62516.0,0.10207555]
[1721042484764,0.0429968,62517.0,62516.0,0.10207555]
[1721042484963,0.0629968,62517.0,62516.0,0.10207555]
[1721042486013,0.10728184,62517.0,62516.0,0.10207555]
[1721042486218,0.10728184,62517.0,62516.0,0.0791505]
[1721042486421,0.04428504,62514.0,62513.0,0.0002505]
[1721042486736,0.36636695,62514.0,62513.0,0.0002505]
[1721042486939,0.39135847,62514.0,62513.0,0.0002505]
[1721042487520,0.38829494,62514.0,62513.0,0.0002505]
[1721042487681,0.38829494,62514.0,62513.0,0.02317555]
[1721042487880,0.36636695,62514.0,62513.0,0.02317555]
[1721042488038,0.38830105,62514.0,62513.0,0.02317555]
[1721042488265,0.21840295,62514.0,62513.0,0.02317555]
[1721042488466,0.24033708,62514.0,62513.0,0.02317555]
[1721042488944,0.24340061,62514.0,62513.0,0.02317555]
[1721042489262,0.23740061,62514.0,62513.0,0.02317555]
[1721042489413,0.25040061,62514.0,62513.0,0.02317555]
[1721042489613,0.24440061,62514.0,62513.0,0.02317555]